[Event "Early-Titled-Tuesday-Blitz-May-28-2024"]
[Site "Chess.com"]
[Date "2024.05.28"]
[Round "1"]
[White "MatthewG-p4p"]
[Black "jlf287"]
[Result "1-0"]
[WhiteElo "2888"]
[BlackElo "2493"]
[TimeControl "180+1"]
[EndTime "8:06:04 PDT"]
[Termination "MatthewG-p4p won by resignation"]

1. f4 {[%clk 0:03:00.2]} 1... d5 {[%clk 0:02:58.3]} 2. Nf3 {[%clk 0:03:00.3]}
2... g6 {[%clk 0:02:58.7]} 3. g3 {[%clk 0:03:00.1]} 3... Bg7 {[%clk 0:02:59]} 4.
Bg2 {[%clk 0:03:00.9]} 4... Nf6 {[%clk 0:02:59.1]} 5. O-O {[%clk 0:03:01.7]}
5... O-O {[%clk 0:02:59.4]} 6. d3 {[%clk 0:03:02.6]} 6... c5 {[%clk 0:02:57.7]}
7. Ne5 {[%clk 0:02:56.7]} 7... Nc6 {[%clk 0:02:54.5]} 8. Nxc6 {[%clk 0:02:56.9]}
8... bxc6 {[%clk 0:02:54.1]} 9. e4 {[%clk 0:02:57.8]} 9... e6 {[%clk 0:02:50.6]}
10. e5 {[%clk 0:02:56.9]} 10... Nd7 {[%clk 0:02:48.6]} 11. Qe2 {[%clk
0:02:54.4]} 11... Ba6 {[%clk 0:02:46.2]} 12. c4 {[%clk 0:02:51.4]} 12... Rb8
{[%clk 0:02:45.3]} 13. Nc3 {[%clk 0:02:50.6]} 13... Nb6 {[%clk 0:02:43.5]} 14.
b3 {[%clk 0:02:36.5]} 14... Re8 {[%clk 0:02:32.7]} 15. Bb2 {[%clk 0:02:00.2]}
15... Qc7 {[%clk 0:02:32.6]} 16. Ba3 {[%clk 0:01:54.6]} 16... Bf8 {[%clk
0:02:27.6]} 17. g4 {[%clk 0:01:49.5]} 17... Bc8 {[%clk 0:02:27]} 18. Rae1 {[%clk
0:01:48.4]} 18... a5 {[%clk 0:02:25.7]} 19. Qf2 {[%clk 0:01:42.7]} 19... Nd7
{[%clk 0:02:12.2]} 20. Na4 {[%clk 0:01:30]} 20... Qa7 {[%clk 0:02:10.6]} 21. Kh1
{[%clk 0:01:15.4]} 21... Bb7 {[%clk 0:01:47]} 22. f5 {[%clk 0:01:15]} 22... exf5
{[%clk 0:01:46.5]} 23. gxf5 {[%clk 0:01:14.4]} 23... Nxe5 {[%clk 0:01:46.1]} 24.
fxg6 {[%clk 0:00:56.8]} 24... hxg6 {[%clk 0:01:46.4]} 25. Rxe5 {[%clk 0:00:52]}
25... Rxe5 {[%clk 0:01:46.6]} 26. Qxf7+ {[%clk 0:00:52.6]} 26... Kh8 {[%clk
0:01:47.1]} 27. Qxg6 {[%clk 0:00:36.3]} 27... Bg7 {[%clk 0:01:27]} 28. Bxc5
{[%clk 0:00:34.6]} 28... Qa8 {[%clk 0:01:20.1]} 29. Nb6 {[%clk 0:00:25.8]} 29...
Qa6 {[%clk 0:01:19.5]} 30. Nd7 {[%clk 0:00:26.2]} 30... Rbe8 {[%clk 0:01:09]}
31. Nxe5 {[%clk 0:00:24]} 31... Rxe5 {[%clk 0:01:09.3]} 32. Bd4 {[%clk
0:00:23.7]} 32... c5 {[%clk 0:01:04.1]} 33. Rf8+ {[%clk 0:00:19.5]} 33... Bxf8
{[%clk 0:01:03.8]} 34. Bxe5+ {[%clk 0:00:20.2]} 1-0

[Event "Early-Titled-Tuesday-Blitz-May-28-2024"]
[Site "Chess.com"]
[Date "2024.05.28"]
[Round "1"]
[White "MKlose11"]
[Black "Sofia_Blokhin"]
[Result "1-0"]
[WhiteElo "2606"]
[BlackElo "2260"]
[TimeControl "180+1"]
[EndTime "8:06:06 PDT"]
[Termination "MKlose11 won by checkmate"]

1. e4 {[%clk 0:02:51.4]} 1... c5 {[%clk 0:02:58.9]} 2. Nc3 {[%clk 0:02:50.8]}
2... e6 {[%clk 0:02:57.9]} 3. g3 {[%clk 0:02:51.3]} 3... Nc6 {[%clk 0:02:57.8]}
4. Bg2 {[%clk 0:02:17]} 4... g6 {[%clk 0:02:57.5]} 5. d3 {[%clk 0:02:16.5]} 5...
Bg7 {[%clk 0:02:57.6]} 6. Be3 {[%clk 0:02:16.3]} 6... b6 {[%clk 0:02:52.1]} 7.
Qd2 {[%clk 0:02:16.7]} 7... Nge7 {[%clk 0:02:47.2]} 8. Bh6 {[%clk 0:02:15.9]}
8... O-O {[%clk 0:02:46.6]} 9. h4 {[%clk 0:02:15.7]} 9... Bxh6 {[%clk 0:02:45]}
10. Qxh6 {[%clk 0:02:15.1]} 10... f6 {[%clk 0:02:44.9]} 11. Qd2 {[%clk
0:02:14.4]} 11... Bb7 {[%clk 0:02:41.6]} 12. f4 {[%clk 0:02:12]} 12... d5 {[%clk
0:02:38.3]} 13. h5 {[%clk 0:02:10.2]} 13... d4 {[%clk 0:02:25.1]} 14. Nce2
{[%clk 0:02:05.4]} 14... f5 {[%clk 0:02:14.8]} 15. hxg6 {[%clk 0:02:04.7]} 15...
hxg6 {[%clk 0:02:12.3]} 16. Nf3 {[%clk 0:02:04.8]} 16... Qe8 {[%clk 0:01:47.6]}
17. Ng5 {[%clk 0:02:03.4]} 17... Nd8 {[%clk 0:01:42.8]} 18. O-O-O {[%clk
0:02:00.8]} 18... fxe4 {[%clk 0:01:29.2]} 19. dxe4 {[%clk 0:01:50]} 19... Nf5
{[%clk 0:01:20.5]} 20. exf5 {[%clk 0:01:27]} 20... Bxg2 {[%clk 0:01:12]} 21.
Nxd4 {[%clk 0:01:17.4]} 21... Bxh1 {[%clk 0:01:01.2]} 22. Rxh1 {[%clk
0:01:07.9]} 22... exf5 {[%clk 0:00:32.1]} 23. Qh2 {[%clk 0:00:57.4]} 23... Qe3+
{[%clk 0:00:27.6]} 24. Kb1 {[%clk 0:00:57.3]} 24... Kg7 {[%clk 0:00:20.1]} 25.
Qh7+ {[%clk 0:00:52.9]} 25... Kf6 {[%clk 0:00:19.8]} 26. Qd7 {[%clk 0:00:53]}
26... Qxd4 {[%clk 0:00:17.2]} 27. Nh7# {[%clk 0:00:51.9]} 1-0

[Event "Early-Titled-Tuesday-Blitz-May-28-2024"]
[Site "Chess.com"]
[Date "2024.05.28"]
[Round "1"]
[White "profedechess93"]
[Black "ChempionBg"]
[Result "1-0"]
[WhiteElo "2603"]
[BlackElo "2252"]
[TimeControl "180+1"]
[EndTime "8:06:13 PDT"]
[Termination "profedechess93 won on time"]

1. e4 {[%clk 0:03:00.9]} 1... c5 {[%clk 0:02:59]} 2. Nf3 {[%clk 0:03:00.7]} 2...
d6 {[%clk 0:02:56.3]} 3. Bb5+ {[%clk 0:02:59.7]} 3... Bd7 {[%clk 0:02:55.5]} 4.
Bxd7+ {[%clk 0:02:59]} 4... Qxd7 {[%clk 0:02:54.7]} 5. O-O {[%clk 0:02:59.8]}
5... Nc6 {[%clk 0:02:53.2]} 6. Re1 {[%clk 0:03:00.6]} 6... g6 {[%clk 0:02:53.2]}
7. c3 {[%clk 0:03:00.9]} 7... Bg7 {[%clk 0:02:53.5]} 8. d4 {[%clk 0:03:01.5]}
8... cxd4 {[%clk 0:02:53.9]} 9. cxd4 {[%clk 0:03:02.4]} 9... Nf6 {[%clk
0:02:48.3]} 10. Nc3 {[%clk 0:03:02.8]} 10... O-O {[%clk 0:02:46.2]} 11. Bg5
{[%clk 0:03:02.4]} 11... h6 {[%clk 0:02:35.4]} 12. Bf4 {[%clk 0:02:56.6]} 12...
Rfc8 {[%clk 0:02:01.6]} 13. Qd2 {[%clk 0:02:51.5]} 13... Kh7 {[%clk 0:01:52.7]}
14. Rad1 {[%clk 0:02:46.8]} 14... Qe8 {[%clk 0:01:26]} 15. e5 {[%clk 0:02:25.1]}
15... dxe5 {[%clk 0:01:23.2]} 16. Nxe5 {[%clk 0:02:19.6]} 16... Nxe5 {[%clk
0:01:21.7]} 17. Bxe5 {[%clk 0:02:06.3]} 17... Qd7 {[%clk 0:01:06.7]} 18. Qe2
{[%clk 0:01:59.2]} 18... e6 {[%clk 0:01:01.2]} 19. h4 {[%clk 0:01:44.1]} 19...
Nd5 {[%clk 0:00:59.8]} 20. Ne4 {[%clk 0:01:44.2]} 20... Qc6 {[%clk 0:00:41.2]}
21. Qf3 {[%clk 0:01:36.1]} 21... Qd7 {[%clk 0:00:34.5]} 22. h5 {[%clk
0:01:31.3]} 22... g5 {[%clk 0:00:27.2]} 23. a3 {[%clk 0:01:21.6]} 23... Kg8
{[%clk 0:00:26.5]} 24. Qg3 {[%clk 0:01:12.3]} 24... b6 {[%clk 0:00:24.5]} 25. f4
{[%clk 0:01:09.6]} 25... gxf4 {[%clk 0:00:09.1]} 26. Bxf4 {[%clk 0:01:07.7]}
26... Nxf4 {[%clk 0:00:06.2]} 27. Nf6+ {[%clk 0:01:06.8]} 27... Kh8 {[%clk
0:00:03.7]} 28. Nxd7 {[%clk 0:01:07.7]} 28... Nxh5 {[%clk 0:00:02.1]} 29. Qf3
{[%clk 0:01:05.3]} 1-0

[Event "Early-Titled-Tuesday-Blitz-May-28-2024"]
[Site "Chess.com"]
[Date "2024.05.28"]
[Round "1"]
[White "rookpower2004"]
[Black "Azeryahu"]
[Result "0-1"]
[WhiteElo "2514"]
[BlackElo "2936"]
[TimeControl "180+1"]
[EndTime "8:06:20 PDT"]
[Termination "Azeryahu won by checkmate"]

1. e4 {[%clk 0:03:00.9]} 1... e5 {[%clk 0:02:59.4]} 2. Nf3 {[%clk 0:02:57.3]}
2... Nc6 {[%clk 0:02:59.5]} 3. Bc4 {[%clk 0:02:57.4]} 3... Nf6 {[%clk
0:02:59.1]} 4. d3 {[%clk 0:02:56.2]} 4... d5 {[%clk 0:02:58.7]} 5. exd5 {[%clk
0:02:55.5]} 5... Nxd5 {[%clk 0:02:59.6]} 6. O-O {[%clk 0:02:53.5]} 6... Nb6
{[%clk 0:02:58.5]} 7. Qe2 {[%clk 0:02:47.6]} 7... Nxc4 {[%clk 0:02:54.3]} 8.
dxc4 {[%clk 0:02:47.4]} 8... f6 {[%clk 0:02:52.5]} 9. Nc3 {[%clk 0:02:37.4]}
9... Be6 {[%clk 0:02:35.7]} 10. Be3 {[%clk 0:02:24]} 10... Qe7 {[%clk
0:02:15.8]} 11. Nd5 {[%clk 0:02:21.8]} 11... Qf7 {[%clk 0:02:15.7]} 12. Rfd1
{[%clk 0:02:16.3]} 12... O-O-O {[%clk 0:02:13.1]} 13. b4 {[%clk 0:01:56.4]}
13... Nxb4 {[%clk 0:02:04.3]} 14. Bxa7 {[%clk 0:01:42.3]} 14... Nxd5 {[%clk
0:02:02.8]} 15. cxd5 {[%clk 0:01:43.2]} 15... Rxd5 {[%clk 0:02:00.1]} 16. Rxd5
{[%clk 0:01:41]} 16... Bxd5 {[%clk 0:02:00.1]} 17. Nd2 {[%clk 0:01:37.7]} 17...
Qg6 {[%clk 0:01:47.1]} 18. f3 {[%clk 0:01:32.6]} 18... Qxc2 {[%clk 0:01:46.9]}
19. Qb5 {[%clk 0:01:30]} 19... Bc6 {[%clk 0:01:39]} 20. Qa5 {[%clk 0:01:26.7]}
20... b6 {[%clk 0:01:30.7]} 21. Qa6+ {[%clk 0:01:26.3]} 21... Bb7 {[%clk
0:01:30.5]} 22. Qb5 {[%clk 0:01:26.1]} 22... Bc5+ {[%clk 0:01:25.8]} 23. Kh1
{[%clk 0:01:26.2]} 23... Qxd2 {[%clk 0:01:25.3]} 24. a4 {[%clk 0:01:23.6]} 24...
Rd8 {[%clk 0:01:22.3]} 25. h3 {[%clk 0:01:15]} 25... Qd3 {[%clk 0:01:22.1]} 26.
Qxd3 {[%clk 0:01:13.2]} 26... Rxd3 {[%clk 0:01:21.6]} 27. a5 {[%clk 0:01:14.1]}
27... e4 {[%clk 0:01:18.6]} 28. axb6 {[%clk 0:01:07.8]} 28... exf3 {[%clk
0:01:15.9]} 29. gxf3 {[%clk 0:01:07.5]} 29... Rxf3 {[%clk 0:01:14.5]} 30. Kh2
{[%clk 0:01:04.4]} 30... Rf2+ {[%clk 0:01:12]} 31. Kg3 {[%clk 0:01:05]} 31...
Rg2+ {[%clk 0:01:12.4]} 32. Kf4 {[%clk 0:01:05.4]} 32... cxb6 {[%clk 0:01:02.6]}
33. Rc1 {[%clk 0:01:05.1]} 33... Kd7 {[%clk 0:01:01.7]} 34. Bb8 {[%clk
0:01:01.4]} 34... Ke6 {[%clk 0:00:48.1]} 35. Re1+ {[%clk 0:00:57.5]} 35... Kf7
{[%clk 0:00:48.7]} 36. Bc7 {[%clk 0:00:56.8]} 36... g5+ {[%clk 0:00:48.3]} 37.
Kf5 {[%clk 0:00:56]} 37... Rf2+ {[%clk 0:00:48.3]} 38. Kg4 {[%clk 0:00:55.3]}
38... Kg6 {[%clk 0:00:43.2]} 39. Kg3 {[%clk 0:00:46.1]} 39... Rg2# {[%clk
0:00:41.8]} 0-1

[Event "Early-Titled-Tuesday-Blitz-May-28-2024"]
[Site "Chess.com"]
[Date "2024.05.28"]
[Round "1"]
[White "Vaathi_Coming"]
[Black "Pitomina"]
[Result "1-0"]
[WhiteElo "2899"]
[BlackElo "2499"]
[TimeControl "180+1"]
[EndTime "8:06:24 PDT"]
[Termination "Vaathi_Coming won by resignation"]

1. b3 {[%clk 0:02:58.8]} 1... d5 {[%clk 0:02:59.2]} 2. Bb2 {[%clk 0:02:58.7]}
2... Nf6 {[%clk 0:02:58.8]} 3. Nf3 {[%clk 0:02:59]} 3... c5 {[%clk 0:02:57.7]}
4. e3 {[%clk 0:02:58.3]} 4... Nc6 {[%clk 0:02:57.7]} 5. d4 {[%clk 0:02:58.5]}
5... cxd4 {[%clk 0:02:57.2]} 6. exd4 {[%clk 0:02:59.4]} 6... Bg4 {[%clk
0:02:56.8]} 7. Nbd2 {[%clk 0:02:59.9]} 7... e6 {[%clk 0:02:56.7]} 8. Bd3 {[%clk
0:02:58.9]} 8... Be7 {[%clk 0:02:53.3]} 9. O-O {[%clk 0:02:57.5]} 9... O-O
{[%clk 0:02:52.9]} 10. a3 {[%clk 0:02:58.2]} 10... Rc8 {[%clk 0:02:52.2]} 11.
Re1 {[%clk 0:02:57.8]} 11... Qc7 {[%clk 0:02:49]} 12. c4 {[%clk 0:02:52.2]}
12... dxc4 {[%clk 0:02:43.6]} 13. bxc4 {[%clk 0:02:53.1]} 13... Rfd8 {[%clk
0:02:44]} 14. Qc2 {[%clk 0:02:44]} 14... Bh5 {[%clk 0:02:38.7]} 15. Rac1 {[%clk
0:02:41.9]} 15... Bg6 {[%clk 0:02:37.9]} 16. g3 {[%clk 0:02:32.7]} 16... Bxd3
{[%clk 0:02:25.1]} 17. Qxd3 {[%clk 0:02:33.6]} 17... Qa5 {[%clk 0:02:17.4]} 18.
Kg2 {[%clk 0:02:27.1]} 18... a6 {[%clk 0:02:13.2]} 19. h3 {[%clk 0:02:17.6]}
19... b5 {[%clk 0:02:12.7]} 20. c5 {[%clk 0:01:55.8]} 20... Nd5 {[%clk
0:02:10.3]} 21. Ne4 {[%clk 0:01:55.5]} 21... h6 {[%clk 0:02:08]} 22. h4 {[%clk
0:01:52.5]} 22... Bf8 {[%clk 0:02:05.1]} 23. Qe2 {[%clk 0:01:46]} 23... Qa4
{[%clk 0:02:03.1]} 24. Ne5 {[%clk 0:01:41.6]} 24... Nxe5 {[%clk 0:02:02.3]} 25.
dxe5 {[%clk 0:01:42.5]} 25... Rc6 {[%clk 0:01:58.2]} 26. Qf3 {[%clk 0:01:34.4]}
26... Rd7 {[%clk 0:01:55.9]} 27. Red1 {[%clk 0:01:28.1]} 27... Rdc7 {[%clk
0:01:52.1]} 28. Rd4 {[%clk 0:01:24]} 28... b4 {[%clk 0:01:49.6]} 29. axb4 {[%clk
0:01:21.8]} 29... Qb5 {[%clk 0:01:47.9]} 30. Nd6 {[%clk 0:01:16.3]} 30... Qb8
{[%clk 0:01:46.1]} 31. Ba3 {[%clk 0:01:04.4]} 31... Rd7 {[%clk 0:01:39.5]} 32.
Rcd1 {[%clk 0:01:01.6]} 32... Ra7 {[%clk 0:01:38.3]} 33. Rg4 {[%clk 0:00:53.6]}
33... Bxd6 {[%clk 0:01:32.5]} 34. exd6 {[%clk 0:00:53]} 34... Rd7 {[%clk
0:01:31.8]} 35. Bb2 {[%clk 0:00:49.4]} 35... f5 {[%clk 0:01:31.1]} 36. Rg6
{[%clk 0:00:31.2]} 36... Qxb4 {[%clk 0:01:25.4]} 37. Rxd5 {[%clk 0:00:21.3]}
37... Qxb2 {[%clk 0:01:20.7]} 38. Rxe6 {[%clk 0:00:21.5]} 38... Qb7 {[%clk
0:01:17.8]} 39. Rxf5 {[%clk 0:00:20.8]} 39... Rxc5 {[%clk 0:01:14.6]} 40. Qxb7
{[%clk 0:00:19.2]} 40... Rxb7 {[%clk 0:01:15.5]} 41. Re8+ {[%clk 0:00:19.2]}
41... Kh7 {[%clk 0:01:13.3]} 42. Rxc5 {[%clk 0:00:20.1]} 1-0

[Event "Early-Titled-Tuesday-Blitz-May-28-2024"]
[Site "Chess.com"]
[Date "2024.05.28"]
[Round "1"]
[White "zsizsi99"]
[Black "Shankland"]
[Result "1-0"]
[WhiteElo "2542"]
[BlackElo "2978"]
[TimeControl "180+1"]
[EndTime "8:06:25 PDT"]
[Termination "zsizsi99 won by resignation"]

1. e4 {[%clk 0:03:00.9]} 1... c5 {[%clk 0:02:59.1]} 2. b3 {[%clk 0:02:54.8]}
2... Nf6 {[%clk 0:02:57.4]} 3. e5 {[%clk 0:02:54.4]} 3... Nd5 {[%clk 0:02:57.6]}
4. Bb2 {[%clk 0:02:54.7]} 4... g6 {[%clk 0:02:58]} 5. g3 {[%clk 0:02:51.8]} 5...
Bg7 {[%clk 0:02:57.8]} 6. Bg2 {[%clk 0:02:52.3]} 6... Nb6 {[%clk 0:02:54.5]} 7.
Nf3 {[%clk 0:02:47.9]} 7... d6 {[%clk 0:02:52.4]} 8. O-O {[%clk 0:02:46]} 8...
O-O {[%clk 0:02:50.9]} 9. d4 {[%clk 0:02:40.9]} 9... cxd4 {[%clk 0:02:49.2]} 10.
Bxd4 {[%clk 0:02:35.4]} 10... Nc6 {[%clk 0:02:48.2]} 11. exd6 {[%clk 0:02:25.8]}
11... Nxd4 {[%clk 0:02:47.3]} 12. Nxd4 {[%clk 0:02:25]} 12... Qxd6 {[%clk
0:02:47.3]} 13. c3 {[%clk 0:02:25.4]} 13... Rd8 {[%clk 0:02:45.7]} 14. Nd2
{[%clk 0:02:16.8]} 14... e5 {[%clk 0:02:36.6]} 15. N4f3 {[%clk 0:02:11.1]} 15...
f5 {[%clk 0:02:36.5]} 16. Rc1 {[%clk 0:01:38.6]} 16... e4 {[%clk 0:02:35.1]} 17.
Nd4 {[%clk 0:01:39]} 17... Bxd4 {[%clk 0:02:31.3]} 18. cxd4 {[%clk 0:01:39.6]}
18... Qxd4 {[%clk 0:02:31.6]} 19. Nc4 {[%clk 0:01:37.5]} 19... Be6 {[%clk
0:02:27.5]} 20. Qxd4 {[%clk 0:01:33.6]} 20... Rxd4 {[%clk 0:02:28.3]} 21. Na5
{[%clk 0:01:26.4]} 21... Rd7 {[%clk 0:02:24.4]} 22. Rfd1 {[%clk 0:01:24.7]}
22... Rad8 {[%clk 0:02:24.4]} 23. Rxd7 {[%clk 0:01:24.2]} 23... Rxd7 {[%clk
0:02:25.3]} 24. Bf1 {[%clk 0:01:22.4]} 24... a6 {[%clk 0:02:20.5]} 25. f3 {[%clk
0:01:01.1]} 25... exf3 {[%clk 0:02:19.7]} 26. Kf2 {[%clk 0:01:01.3]} 26... Kf7
{[%clk 0:02:19.5]} 27. Kxf3 {[%clk 0:01:00]} 27... Ke7 {[%clk 0:02:18.9]} 28. h4
{[%clk 0:00:52.1]} 28... Nd5 {[%clk 0:02:17.1]} 29. Bc4 {[%clk 0:00:42.2]} 29...
Nf6 {[%clk 0:02:17.1]} 30. Re1 {[%clk 0:00:40.4]} 30... Ne4 {[%clk 0:02:16.9]}
31. Kf4 {[%clk 0:00:28.6]} 31... h6 {[%clk 0:02:10.6]} 32. g4 {[%clk 0:00:21]}
32... g5+ {[%clk 0:02:05.7]} 33. hxg5 {[%clk 0:00:20.7]} 33... hxg5+ {[%clk
0:02:06.6]} 34. Ke5 {[%clk 0:00:20.9]} 34... Bxc4 {[%clk 0:01:45.8]} 35. Nxc4
{[%clk 0:00:21.5]} 35... Ng3 {[%clk 0:01:29.7]} 36. gxf5 {[%clk 0:00:21.8]}
36... b5 {[%clk 0:01:27.5]} 37. f6+ {[%clk 0:00:20.3]} 37... Kf7 {[%clk
0:01:25.7]} 38. Nd6+ {[%clk 0:00:20.8]} 38... Kg6 {[%clk 0:01:26.1]} 39. Ke6
{[%clk 0:00:20.4]} 39... Rd8 {[%clk 0:01:24.6]} 40. Ke7 {[%clk 0:00:18.9]} 40...
Ra8 {[%clk 0:01:15.2]} 41. f7 {[%clk 0:00:18.2]} 41... Ra7+ {[%clk 0:01:15.6]}
42. Ke8 {[%clk 0:00:16.9]} 42... Ra8+ {[%clk 0:01:14.9]} 43. Ke7 {[%clk
0:00:16.5]} 43... Ra7+ {[%clk 0:01:15.2]} 44. Ke6 {[%clk 0:00:16.3]} 44... Ra8
{[%clk 0:01:14.6]} 45. Ne8 {[%clk 0:00:12]} 1-0

[Event "Early-Titled-Tuesday-Blitz-May-28-2024"]
[Site "Chess.com"]
[Date "2024.05.28"]
[Round "1"]
[White "FollowRivers"]
[Black "Aradhya2000"]
[Result "0-1"]
[WhiteElo "2477"]
[BlackElo "2852"]
[TimeControl "180+1"]
[EndTime "8:06:27 PDT"]
[Termination "Aradhya2000 won by resignation"]

1. Nf3 {[%clk 0:03:00.9]} 1... d5 {[%clk 0:02:59.7]} 2. b3 {[%clk 0:03:00.9]}
2... c5 {[%clk 0:02:57]} 3. e3 {[%clk 0:03:00.2]} 3... Nc6 {[%clk 0:02:56.8]} 4.
Bb2 {[%clk 0:03:00.7]} 4... Nf6 {[%clk 0:02:56.8]} 5. Be2 {[%clk 0:03:00.3]}
5... a6 {[%clk 0:02:56.5]} 6. O-O {[%clk 0:02:59.8]} 6... d4 {[%clk 0:02:56.9]}
7. exd4 {[%clk 0:02:55.1]} 7... cxd4 {[%clk 0:02:56.8]} 8. Re1 {[%clk
0:02:55.7]} 8... Bf5 {[%clk 0:02:26.5]} 9. Nh4 {[%clk 0:02:42.6]} 9... Be6
{[%clk 0:02:22.7]} 10. Bd3 {[%clk 0:02:39.9]} 10... Qd7 {[%clk 0:02:16.6]} 11.
c4 {[%clk 0:02:34.8]} 11... g6 {[%clk 0:01:42.9]} 12. Nf3 {[%clk 0:02:20.9]}
12... Bg7 {[%clk 0:01:42.7]} 13. Ng5 {[%clk 0:02:13.6]} 13... Bf5 {[%clk
0:01:40.3]} 14. Bxf5 {[%clk 0:02:07.4]} 14... Qxf5 {[%clk 0:01:38.9]} 15. Nf3
{[%clk 0:02:07.9]} 15... O-O-O {[%clk 0:01:37.4]} 16. a3 {[%clk 0:02:01.9]}
16... e5 {[%clk 0:01:27.8]} 17. d3 {[%clk 0:01:55.9]} 17... e4 {[%clk
0:01:25.6]} 18. dxe4 {[%clk 0:01:54]} 18... Nxe4 {[%clk 0:01:26.5]} 19. Qd3
{[%clk 0:01:44.8]} 19... Nc5 {[%clk 0:01:17.6]} 20. Qxf5+ {[%clk 0:01:42.4]}
20... gxf5 {[%clk 0:01:18.5]} 21. Rd1 {[%clk 0:01:10]} 21... Nxb3 {[%clk
0:01:16.1]} 22. Ra2 {[%clk 0:01:10.6]} 22... Rhe8 {[%clk 0:01:16.4]} 23. Nbd2
{[%clk 0:01:07.7]} 23... Nc5 {[%clk 0:01:11.1]} 24. g3 {[%clk 0:01:03.3]} 24...
Ne4 {[%clk 0:01:09.8]} 25. Nxe4 {[%clk 0:00:52.3]} 25... fxe4 {[%clk 0:01:08.8]}
26. Ng5 {[%clk 0:00:53]} 26... h6 {[%clk 0:01:05.8]} 27. Nh3 {[%clk 0:00:44.7]}
27... Ne5 {[%clk 0:01:06]} 28. c5 {[%clk 0:00:33]} 28... Nc4 {[%clk 0:00:59.6]}
29. Kg2 {[%clk 0:00:32]} 29... e3 {[%clk 0:00:52]} 30. Nf4 {[%clk 0:00:23.4]}
30... e2 {[%clk 0:00:48.8]} 31. Re1 {[%clk 0:00:23.2]} 31... Nxb2 {[%clk
0:00:48.6]} 32. Rxb2 {[%clk 0:00:22]} 32... d3 {[%clk 0:00:49.3]} 33. Ra2 {[%clk
0:00:15.7]} 33... d2 {[%clk 0:00:47.2]} 0-1

[Event "Early-Titled-Tuesday-Blitz-May-28-2024"]
[Site "Chess.com"]
[Date "2024.05.28"]
[Round "1"]
[White "mind1mover"]
[Black "Fernando_Offermann"]
[Result "1-0"]
[WhiteElo "2846"]
[BlackElo "2472"]
[TimeControl "180+1"]
[EndTime "8:06:28 PDT"]
[Termination "mind1mover won by resignation"]

1. e4 {[%clk 0:02:58.2]} 1... c5 {[%clk 0:02:59]} 2. Nf3 {[%clk 0:02:56.8]} 2...
d6 {[%clk 0:02:59.3]} 3. d4 {[%clk 0:02:56.9]} 3... cxd4 {[%clk 0:02:59.5]} 4.
Nxd4 {[%clk 0:02:57.8]} 4... Nf6 {[%clk 0:02:59.8]} 5. Nc3 {[%clk 0:02:58.3]}
5... a6 {[%clk 0:03:00.2]} 6. Be2 {[%clk 0:02:58.9]} 6... e5 {[%clk 0:02:59.7]}
7. Nb3 {[%clk 0:02:59.5]} 7... Be6 {[%clk 0:02:59.2]} 8. O-O {[%clk 0:02:51.2]}
8... Nbd7 {[%clk 0:02:59.1]} 9. f4 {[%clk 0:02:51.5]} 9... Rc8 {[%clk
0:02:58.7]} 10. f5 {[%clk 0:02:49.8]} 10... Bc4 {[%clk 0:02:58.8]} 11. a4 {[%clk
0:02:43.1]} 11... Be7 {[%clk 0:02:54.2]} 12. Rf3 {[%clk 0:02:27.9]} 12... b5
{[%clk 0:02:52.1]} 13. axb5 {[%clk 0:02:25.2]} 13... axb5 {[%clk 0:02:52.4]} 14.
Bd3 {[%clk 0:02:15.3]} 14... b4 {[%clk 0:02:51.8]} 15. Ne2 {[%clk 0:02:13.4]}
15... d5 {[%clk 0:02:50.4]} 16. Ng3 {[%clk 0:02:04.8]} 16... h5 {[%clk
0:02:47.2]} 17. Bxc4 {[%clk 0:01:55.9]} 17... dxc4 {[%clk 0:02:45.1]} 18. Nd2
{[%clk 0:01:55.6]} 18... h4 {[%clk 0:02:45.4]} 19. Ngf1 {[%clk 0:01:55.9]} 19...
Nc5 {[%clk 0:02:42.4]} 20. Qe2 {[%clk 0:01:56.1]} 20... Qd4+ {[%clk 0:02:28.6]}
21. Qe3 {[%clk 0:01:44.2]} 21... Ncxe4 {[%clk 0:02:22.9]} 22. Nxe4 {[%clk
0:01:40.7]} 22... Nxe4 {[%clk 0:02:21.7]} 23. Qxd4 {[%clk 0:01:38.5]} 23... exd4
{[%clk 0:02:21.9]} 24. Rf4 {[%clk 0:01:39.4]} 24... Nf6 {[%clk 0:02:21.5]} 25.
Rxd4 {[%clk 0:01:40.3]} 25... Bc5 {[%clk 0:02:21.4]} 26. Be3 {[%clk 0:01:41]}
26... Bxd4 {[%clk 0:02:21.4]} 27. Bxd4 {[%clk 0:01:41.9]} 27... O-O {[%clk
0:02:17.5]} 28. Ne3 {[%clk 0:01:27.1]} 28... Rfd8 {[%clk 0:02:16.3]} 29. c3
{[%clk 0:01:27.5]} 29... Nd5 {[%clk 0:02:13]} 30. Ng4 {[%clk 0:01:19.8]} 30...
bxc3 {[%clk 0:02:11.3]} 31. bxc3 {[%clk 0:01:20.7]} 31... f6 {[%clk 0:02:03.7]}
32. g3 {[%clk 0:01:18.2]} 32... hxg3 {[%clk 0:02:03.1]} 33. hxg3 {[%clk
0:01:19.1]} 33... Ne7 {[%clk 0:02:03.7]} 34. Ne3 {[%clk 0:01:18.2]} 34... Rd6
{[%clk 0:01:58.2]} 35. Ra5 {[%clk 0:01:08.9]} 35... Kf7 {[%clk 0:01:51.6]} 36.
g4 {[%clk 0:01:08.4]} 36... Rc7 {[%clk 0:01:47.5]} 37. Kf2 {[%clk 0:01:04.7]}
37... Rdc6 {[%clk 0:01:47.8]} 38. Kf3 {[%clk 0:01:03.8]} 38... Rd7 {[%clk
0:01:48]} 39. Ke4 {[%clk 0:01:02.6]} 39... Nc8 {[%clk 0:01:48.2]} 40. Ra8 {[%clk
0:00:56.6]} 40... Nd6+ {[%clk 0:01:45.7]} 41. Kf4 {[%clk 0:00:57.1]} 41... Re7
{[%clk 0:01:43.6]} 42. Nd5 {[%clk 0:00:50.7]} 42... Re4+ {[%clk 0:01:42.2]} 43.
Kf3 {[%clk 0:00:50.3]} 43... Rxd4 {[%clk 0:01:33.7]} 44. Ra7+ {[%clk 0:00:47.7]}
44... Kf8 {[%clk 0:01:29.9]} 45. cxd4 {[%clk 0:00:45.6]} 45... c3 {[%clk
0:01:30.4]} 46. Ra8+ {[%clk 0:00:38.5]} 46... Kf7 {[%clk 0:01:24.9]} 47. Ra7+
{[%clk 0:00:39]} 47... Kf8 {[%clk 0:01:19.6]} 48. Ra8+ {[%clk 0:00:39.3]} 48...
Nc8 {[%clk 0:01:15.6]} 49. Nb4 {[%clk 0:00:34.2]} 49... c2 {[%clk 0:01:13.4]}
50. Nxc6 {[%clk 0:00:33.6]} 50... c1=Q {[%clk 0:01:12.1]} 51. Rxc8+ {[%clk
0:00:34]} 51... Kf7 {[%clk 0:01:10.8]} 52. Nd8+ {[%clk 0:00:34.3]} 52... Ke8
{[%clk 0:01:10.5]} 53. Rxc1 {[%clk 0:00:35.2]} 1-0